Cogmind - Beta 10.2 @@@ ROGUE MODE // 2020.11.27 @ 17:11:34 // Halloween2020/ForbiddenLore Player: Smokey Result: Destroyed by S-10 Pest with Light Assault Rifle Performance ------------- Evolutions (1) 500 Regions Visited (2) 400 Robots Destroyed (16) 80 Value Destroyed (320) 320 Prototype IDs (0) 0 Alien Tech Used (0) 0 Bonus (0) 0 TOTAL SCORE: 1300 Bonus ------- None Cogmind --------- Core Integrity 0/400 Matter 127/300 Energy 500/500 System Corruption 0% Temperature Cool (0) Movement Core (150) Ox2 Location -9/Materials Parts ------- > --- POWER (1) -------- (None) > --- PROPULSION (2) --- (None) > --- UTILITY (2) ------ Small Storage Unit High-capacity Battery > --- WEAPON (4) ------- (None) > --- INVENTORY (6) ---- Wheel Wheel Peak State ------------ > --- POWER ------------ Light Ion Engine > --- PROPULSION ------- Aluminum Leg Aluminum Leg > --- UTILITY ---------- Small Storage Unit High-capacity Battery > --- WEAPON ----------- Spread Laser Spread Laser Beam Cannon Mining Claw > --- INVENTORY -------- Light Ion Engine EM Pulse Gun Beam Cannon Grenade Launcher [Rating: 11] Favorites ----------- Power Light Ion Engine Engine Light Ion Engine Propulsion Aluminum Leg Leg Aluminum Leg Wheel Wheel Utility Small Storage Unit Storage Small Storage Unit Weapon Beam Cannon Energy Gun Spread Laser Energy Cannon Beam Cannon Launcher Grenade Launcher Slashing Weapon Mining Claw Build | -11 -10 -9 ------- Run | Scr Mat Mat Slots Evolved 2 | . . 2 Power . | . . . Propulsion . | . . . Utility . | . . . Weapon 2 | . . 2 Parts Attached 24 | 4 10 10 Power 4 | 1 2 1 Engine 4 | 1 2 1 Core . | . . . Reactor . | . . . Propulsion 6 | 2 1 3 Treads . | . . . Leg 3 | 2 1 . Wheel 3 | . . 3 Hover . | . . . Flight . | . . . Utility 2 | 1 1 . Device . | . . . Storage 2 | 1 1 . Processor . | . . . Hackware . | . . . Protection . | . . . Artifact . | . . . Weapon 12 | . 6 6 Energy Gun 4 | . 1 3 Energy Cannon 3 | . 2 1 Ballistic Gun . | . . . Ballistic Cannon . | . . . Launcher 3 | . 2 1 Special Weapon . | . . . Impact Weapon . | . . . Slashing Weapon 2 | . 1 1 Piercing Weapon . | . . . Special Melee Weapon . | . . . Unidentified Prototypes . | . . . Parts Lost 13 | . 2 11 Power 4 | . 2 2 Propulsion 2 | . . 2 Utility . | . . . Weapon 7 | . . 7 Highest Loss Streak 11 | . 1 11 Average Slot Usage (%) 85 | . 90 75 Engine 10 | . 12 7 Leg 19 | . 28 5 Wheel 3 | . . 8 Storage 21 | . 21 22 Energy Gun 6 | . 3 12 Energy Cannon 9 | . 9 8 Launcher 4 | . 7 . Slashing Weapon 8 | . 7 9 Naked Turns . | . . . Heaviest Build 22 | 9 16 22 Greatest Support 20 | 20 20 20 Greatest Overweight (x) 3 | . . 3 Average Overweight (x) . | . . 1 Largest Inventory Capacity 6 | 6 6 6 Average Capacity 5 | 5 6 6 Most Carried 6 | 5 6 6 Average Carried 4 | 2 5 3 Final Capacity 6 | 6 6 6 Final Carried 6 | 5 6 2 Class Distribution -------------------- 100% | Mutant Dominant Class ---------------- Mutant | -10/Materials Mutant | -9/Materials Resources | -11 -10 -9 ----------- Run | Scr Mat Mat Matter Collected 312 | 210 102 . Remotely . | . . . Salvage Created 193 | . 180 13 Parts 19 | . 15 4 Haulers Intercepted 1 | . 1 . Recyclers Shooed . | . . . Parts Field Recycled . | . . . Retrieved Matter . | . . . Parts Self-Destructed . | . . . Prevented . | . . . Kills | -11 -10 -9 ------- Run | Scr Mat Mat Combat Hostiles Destroyed 11 | . 9 2 Cannons 2 | . 1 1 AOE 9 | . 8 1 Classes Destroyed 6 | . 5 1 Tunneler 2 | . 2 . Hauler 1 | . 1 . Operator 1 | . . 1 Watcher 1 | . 1 . Swarmer 8 | . 6 2 Grunt 3 | . 3 . Best Kill Streak 8 | . 8 3 Combat Bots Only 5 | . 5 2 Max Kills in Single Turn 4 | . 4 1 Gunslinging . | . . . Exploded 1 | . 1 1 Melee . | . . . Uniques/NPCs Destroyed . | . . . Combat | -11 -10 -9 -------- Run | Scr Mat Mat Damage Taken 1348 | . 314 1034 Core 457 | . 49 408 Absorbed by Shields . | . . . Core Remaining (%) 90 | 100 80 . Volleys Fired 17 | . 12 5 Largest 3 | . 1 3 Hottest 190 | . 60 190 Shots Fired 24 | . 12 12 Gun 4 | . 1 3 Cannon 9 | . 1 8 Launcher 11 | . 10 1 Special . | . . . Kinetic . | . . . Thermal 11 | . 1 10 Explosive 11 | . 10 1 Electromagnetic 2 | . 1 1 Robot Hit Streak 2 | . 2 2 Robot Miss Streak 3 | . 2 3 Penetration Max . | . . . Secondary Targets . | . . . Shots Hit Robots 12 | . 6 6 Core Hits 21 | . 17 4 Critical Hits . | . . . Critical Kills . | . . . Critical Parts Destroyed . | . . . Melee Attacks 3 | . 3 . Impact . | . . . Slashing 3 | . 3 . Piercing . | . . . Sneak Attacks . | . . . Combat Hostiles . | . . . Follow-up Attacks . | . . . Damage Inflicted 1146 | . 858 288 Guns 7 | . . 7 Cannons 52 | . 17 35 Explosions 1065 | . 819 246 Melee 22 | . 22 . Ramming . | . . . Kinetic . | . . . Thermal 165 | . 17 148 Explosive 959 | . 819 140 Electromagnetic . | . . . Impact . | . . . Slashing 22 | . 22 . Piercing . | . . . Highest Corruption . | . . . Average Corruption . | . . . Corruption Purged . | . . . Overload Shots . | . . . Overflow Damage 126 | . 20 106 Projectiles . | . . . Explosions 126 | . 20 106 Melee . | . . . Knockbacks . | . . . Impact . | . . . Kinetic . | . . . Secondary . | . . . Self-Inflicted Damage 251 | . 74 177 Shots 4 | . 2 2 Rammed . | . . . Targets Rammed . | . . . Kicked . | . . . Crushed . | . . . Highest Temperature 265 | . 21 265 Average Temperature 103 | . 10 111 Received Heat Transfer 252 | . 54 198 Siege Activations . | . . . Robots Corrupted . | . . . Combat Hostiles . | . . . Parts Fried . | . . . Impact Corruptions . | . . . Robots Melted . | . . . Combat Hostiles . | . . . Parts Melted 2 | . . 2 Heat Transferred 221 | . 37 184 Parts Sabotaged . | . . . Parts Stolen . | . . . Parts Stripped . | . . . Power Chain Reactions . | . . . Missiles Intercepted . | . . . Alert | -11 -10 -9 ------- Run | Scr Mat Mat Peak Influence 344 | . 344 219 Initial 144 | . . 144 Average 148 | . 183 160 Maximum Alert Level 1 | . 1 1 Low Security (%) 80 | 100 70 88 Level 1 19 | . 29 11 Level 2 . | . . . Level 3 . | . . . Level 4 . | . . . Level 5 . | . . . High Security . | . . . Max Security . | . . . Squads Dispatched 3 | . 2 1 Investigation . | . . . Extermination . | . . . Reinforcement 3 | . 2 1 Assault . | . . . Garrison . | . . . Intercept . | . . . Construction Impeded . | . . . Haulers Reinforced . | . . . Stealth | -11 -10 -9 --------- Run | Scr Mat Mat Distress Signals 1 | . 1 . Communications Jammed . | . . . Distress Signals . | . . . Times Spotted 25 | . 14 11 Peak Tracking Total 8 | . 5 8 Tactical Retreats 2 | . 2 . Traps | -11 -10 -9 ------- Run | Scr Mat Mat Traps Triggered . | . . . Indirectly . | . . . Trap Hack Attempts . | . . . Triggered . | . . . Disarmed . | . . . Reprogrammed . | . . . Reused . | . . . Traps Extracted . | . . . Installed . | . . . Triggered . | . . . Machines | -11 -10 -9 ---------- Run | Scr Mat Mat Machines Disabled 9 | . 5 4 Max in Single Turn 4 | . 4 3 Machines Sabotaged . | . . . Garrisons Compromised . | . . . Overloaded Fab Kills . | . . . Fab Network Shutdowns . | . . . Hacking | -11 -10 -9 --------- Run | Scr Mat Mat Machines Accessed . | . . . Terminals . | . . . Fabricators . | . . . Repair Stations . | . . . Recycling Units . | . . . Scanalyzers . | . . . Garrison Access . | . . . Total Hacks . | . . . Successful . | . . . Failed . | . . . Catastrophic . | . . . Database Lockouts . | . . . Manual . | . . . Terminals . | . . . Fabricators . | . . . Repair Stations . | . . . Recycling Units . | . . . Scanalyzers . | . . . Garrison Access . | . . . Terminal Hacks . | . . . Fabricator Hacks . | . . . Repair Station Hacks . | . . . Recycling Unit Hacks . | . . . Scanalyzer . | . . . Garrison Access Hacks . | . . . Unauthorized Hacks . | . . . Terminals . | . . . Fabricators . | . . . Repair Stations . | . . . Recycling Units . | . . . Scanalyzers . | . . . Garrison Access . | . . . Data Cores Recovered . | . . . Used . | . . . Hacking Detections . | . . . Full Trace Events . | . . . Feedback Events . | . . . Feedback Blocked . | . . . Robot Schematics Acquired . | . . . Robots Built . | . . . Matter . | . . . Time . | . . . Total Robot Build Rating . | . . . Part Schematics Acquired . | . . . Parts Built . | . . . Matter . | . . . Time . | . . . Total Part Build Rating . | . . . Parts Repaired . | . . . Time . | . . . Parts Recycled . | . . . Recycled Matter . | . . . Retrieved Matter . | . . . Retrieved Components . | . . . Parts Scanalyzed . | . . . Part Schematics Acquired . | . . . Parts Damaged . | . . . Bothacking | -11 -10 -9 ------------ Run | Scr Mat Mat Used RIF Installer . | . . . Robots Hacked . | . . . Non-combat . | . . . Combat . | . . . Robot Hacks Applied . | . . . Relay Couplers Released . | . . . Robots Rewired . | . . . Allies Hacked . | . . . Hacks Repelled . | . . . Allies | -11 -10 -9 -------- Run | Scr Mat Mat Total Allies . | . . . Largest Group . | . . . Highest-Rated Group . | . . . Highest-Rated Ally . | . . . Total Orders . | . . . Ally Attacks . | . . . Total Damage . | . . . Kills . | . . . Allies Corrupted . | . . . Allies Melted . | . . . Intel | -11 -10 -9 ------- Run | Scr Mat Mat Robot Analysis Total . | . . . Derelict Logs Recovered . | . . . Drone Launches . | . . . Drone Recoveries . | . . . Exploration | -11 -10 -9 ------------- Run | Scr Mat Mat Turns Passed 336 | 52 185 99 Spaces Moved 192 | 41 109 42 Core 24 | 13 . 11 Treads . | . . . Legs 148 | 28 109 11 Wheels 20 | . . 20 Hover . | . . . Flight . | . . . Fastest Speed 50 | 50 120 80 Average Speed 117 | 97 120 132 Slowest Speed 200 | 120 120 200 Overloaded Moves . | . . . Propulsion Burnouts . | . . . Robots Hopped . | . . . Cave-ins Triggered . | . . . Exploration Rate (%) 14 | 3 34 7 Regions Visited 2 Branch Regions . Pre-discovered Areas . | . . . Known Exits Taken . | . . . Unknown Exits Taken 2 | 1 1 . Scrap Searched . | . . . Spaces Dug . | . . . Terrain Destroyed 89 | . 51 38 Melee . | . . . Projectile . | . . . AOE 89 | . 51 38 Terrain Rammed . | . . . Walls Destroyed . | . . . Machines Disabled . | . . . Actions | -11 -10 -9 --------- Run | Scr Mat Mat Total 273 | 53 144 76 Wait 12 | . . 12 Move 190 | 40 108 42 Hop . | . . . Pick Up 19 | 9 7 3 Fast Attach 4 | . 2 2 Attach 15 | 4 4 7 Detach 1 | . . 1 Swap 5 | . 4 1 Drop 7 | . 4 3 Fire 17 | . 12 5 Melee 3 | . 3 . Ram . | . . . Kick . | . . . Crush . | . . . Escape Stasis . | . . . Rewire . | . . . Trap . | . . . Miscellaneous . | . . . Route ------- -11/Scrapyard -10/Materials -9/Materials History --------- Turn | Location | Event 27 | -11/Scrapyard | Discovered new exit (range 15) 53 | -11/Scrapyard | Entered Materials 214 | -10/Materials | Discovered new exit (range 4) 238 | -10/Materials | Entered another Materials area 238 | -9/Materials | Evolved 2 slots: Weapon x2 310 | -9/Materials | Core integrity fell below 50% 313 | -9/Materials | Build established: Mutant 323 | -9/Materials | Core integrity fell below 20% 337 | -9/Materials | Destroyed by S-10 Pest with Light Assault Rifle Last Messages --------------- 00285_ Destroyed Flight Unit. 00286_ S-10 Pest destroyed. 00289_ Grenade Launcher destroyed. 00290_ K-01 Serf collects debris. 00290_ K-01 Serf cleans the Fusion Modulator. 00291_ S-10 Pest destroyed. 00291_ Acquired Beam Cannon. 00293_ S-10 Pest destroyed. 00296_ The unstable cave ceiling collapses. 00296_ EM Pulse Gun destroyed. 00297_ K-01 Serf collects debris. 00300_ Beam Cannon destroyed. 00301_ Lgt. Ion Engine destroyed. 00301_ Wheel destroyed. 00302_ Beam Cannon destroyed. 00303_ K-01 Serf collects debris. 00304_ Wheel destroyed. 00307_ K-01 Serf collects debris. 00319_ U-05 Engineer builds a Wall. 00330_ Mining Claw destroyed. Map ----- +----------------------------------------------------+ | ?????????????????????? ????????????????????????? | | ?????????????????????# ????????????????????????? | | ?????????????????????# ????????????????????????? | | ???????????????? ????# ????????????????????????? | | ????????????????# ???# ????????????????????????? | | ????????????????# ???# #????????????????????????? | | ????????????????# ???# #????????????????????????? | | ????????????????# ???# #????????????????????????? | | ??????????????### ##?# ########?????????????????? | | ????????????###"""""## # # ##########????????? | | ????????????#" " = ????????? | | ???????????##" " =% ????????? | | ??????######" = *%%*% ?????????? | | ????? = " ??????????? | | ????? "" ???????????? | | ???? """ #???????????????? | | ???? #???????????????? | | ???????"" " #???????????????? | | ???????"" " = +???????????????? | | ???????"" #*%g ; ##### #???????????????? | | ??????? "[ g " #???# #???????????????? | | ??????? ###""";;###s###### #???????????????? | | ??????####+???###### s ######???????????????? | | ???????????????????# s ! #????????????????????? | | ???????????????????# #????????????????????? | | ???????????????????# @ #????????????????????? | | ???????????????????# = #????????????????????? | | ???????????????????# #????????????????????? | | ???????????????????# #????????????????????? | | ???????????????????##########????????????????????? | | | | | | | | | | | | | | | | | | | | | | | | | | | | | | | | | | | | | | | | | +----------------------------------------------------+ Best States ------------- Heat Dissipation 28 Energy Generation 10 Energy Capacity 525 Matter Stores 260 Matter Capacity 300 Sight Range 16 Terrain Scan Density 10 Evasion (%) 50 Item Schematics ----------------- None Robot Schematics ------------------ None Fabricated ------------ Nothing Alien Tech Used ----------------- None Achievements -------------- None Challenges ------------ None Game ------ Seed InsulationForceStripper Manual? 0 Play Time 00:11:27 Cumulative 10.2 hours Start 2020.11.27 @ 17:02:43 End 2020.11.27 @ 17:11:34 Sessions 1 Manual Loads 0 Difficulty Rogue Special Mode Halloween2020/ForbiddenLore Game No. 23 Rogue 22 Adventurer 1 Explorer 0 Win Type - Total 0 Types 0/0/0/0/0/0/0/0/0 Lore% 15 Gallery% 16 Achievement% 7 Wizard Run 0 Options --------- ASCII 0 Keyboard 0 Movement Mouse Keybinds 0 Fullscreen 2 Font 18/SmallcapsGlow Map View 76x50 Tactical HUD 1 Map Filters NONE Filters NONE Steam 1 RUN: 7d876c53-569e-456b-9708-e32fd7743689